fUST/lending_fUST_20240727
["ID","MTS","AMOUNT","RATE_DAILY","PERIOD"]
[333384541,1722087928016,273.37336231,9.9e-05,2]
[333384542,1722087930611,-311.7968649,0.00010959,2]
[333384543,1722087930634,-593.87499766,0.00010959,2]
[333384544,1722087936300,273.37336231,9.9e-05,2]
[333384545,1722087944254,273.37336231,9.9e-05,2]
[333384546,1722087953184,273.37336231,9.9e-05,2]
[333384547,1722087961482,273.37336231,9.9e-05,2]
[333384548,1722087970688,273.37336231,9.9e-05,2]
[333384549,1722087977421,302.66248694,9.999e-05,2]
[333384550,1722087977845,727.02832733,9.999e-05,2]
[333384551,1722087978763,273.37336231,9.9e-05,2]
[333384552,1722087987681,273.37336231,9.9e-05,2]
[333384553,1722087990166,156.44936091,9.999e-05,2]
[333384554,1722087996700,542.70996312,9.999e-05,2]
[333384555,1722087997233,273.37336231,9.9e-05,2]
[333384556,1722088002041,459.33527907,9.999e-05,2]
[333384562,1722088007154,273.37336231,9.9e-05,2]
[333384563,1722088009168,531.35557493,9.999e-05,2]
[333384564,1722088013647,224.47003052,9.999e-05,2]
[333384565,1722088017071,273.37336231,9.9e-05,2]
[333384566,1722088024540,268.67097433,9.999e-05,2]
[333384567,1722088025342,273.37336231,9.9e-05,2]
[333384568,1722088025917,267.40786591,0.0001,2]
[333384569,1722088027110,-166.88,0.00010959,2]
[333384570,1722088027133,-154.46696046,0.00011039,2]
[333384571,1722088028240,-95.53303954,0.00011039,2]
[333384572,1722088028267,-891.59372346,0.00011187,2]
[333384573,1722088028344,196.33497966,9.999e-05,2]
[333384574,1722088030002,288.23560711,9.999e-05,2]
[333384575,1722088030119,-7486.37485804,0.00011187,2]
[333384576,1722088030144,-300.0,0.00011285,2]
[333384577,1722088030166,-300.0,0.00011285,2]
[333384578,1722088030189,-23565.46028624,0.00011286,2]
[333384579,1722088031519,533.38063441,9.999e-05,2]
[333384580,1722088033277,273.37336231,9.9e-05,2]
[333384585,1722088036112,-154.78632197,0.00011286,2]
[333384586,1722088040979,813.00772694,9.999e-05,2]
[333384587,1722088041582,273.37336231,9.9e-05,2]
[333384588,1722088043534,162.95665863,9.999e-05,2]
[333384589,1722088043617,806.45186026,9.999e-05,2]
[333384590,1722088044543,154.82188073,9.999e-05,2]
[333384591,1722088044775,154.80649189,9.999e-05,2]
[333384592,1722088049980,273.37336231,9.9e-05,2]
[333384593,1722088050096,154.80649189,9.999e-05,2]
[333384594,1722088051824,783.26953764,9.999e-05,2]
[333384595,1722088052308,404.47935249,9.999e-05,2]
[333384596,1722088052370,201.47906837,9.999e-05,2]
[333384597,1722088053368,289.59199175,9.999e-05,2]
[333384598,1722088058166,273.37336231,9.9e-05,2]
[333384599,1722088058466,160.00381439,9.999e-05,2]
[333384601,1722088060713,204.43824148,0.0001,2]
[333384602,1722088064604,154.66746495,0.0001,2]
[333384603,1722088065503,156.62454437,9.999e-05,2]
[333384604,1722088066188,273.37336231,9.9e-05,2]
[333384605,1722088068286,188.04294313,9.999e-05,2]
[333384606,1722088070267,240.55889109,9.999e-05,2]
[333384607,1722088072104,162.26212728,9.999e-05,2]
[333384608,1722088074391,273.37336231,9.9e-05,2]
[333384609,1722088082316,300.05909145,9.999e-05,2]
[333384610,1722088083141,273.37336231,9.9e-05,2]
[333384611,1722088089065,418.09134839,9.999e-05,2]
[333384612,1722088090243,154.80649189,9.999e-05,2]
[333384613,1722088091215,154.66746495,9.999e-05,2]
[333384614,1722088091466,273.37336231,9.9e-05,2]
[333384615,1722088091615,154.66746495,9.999e-05,2]
[333384616,1722088091818,542.70996312,9.999e-05,2]
[333384617,1722088100151,273.37336231,9.9e-05,2]
[333384618,1722088107734,154.80649189,9.999e-05,2]
[333384619,1722088109949,273.37336231,9.9e-05,2]
[333384620,1722088113157,414.61537087,9.999e-05,2]
[333384621,1722088115861,154.80649189,9.999e-05,2]
[333384622,1722088116951,663.78880537,9.999e-05,2]
[333384623,1722088117730,273.37336231,9.9e-05,2]
[333384624,1722088120891,304.47018231,9.999e-05,2]
[333384625,1722088121275,199.86730358,9.999e-05,2]
[333384626,1722088126784,273.37336231,9.9e-05,2]
[333384627,1722088127336,403.4655861,9.999e-05,2]
[333384628,1722088129648,806.45186026,9.999e-05,2]
[333384629,1722088134888,273.37336231,9.9e-05,2]
[333384630,1722088135236,154.66746495,9.999e-05,2]
[333384631,1722088143350,273.37336231,9.9e-05,2]
[333384632,1722088148116,-294.0,0.00010959,2]
[333384633,1722088151269,273.37336231,9.9e-05,2]
[333384638,1722088154097,-37.83,0.00010959,2]
[333384644,1722088156980,212.17,9.999e-05,2]
[333384645,1722088157007,600.83772694,9.999e-05,2]
[333384649,1722088160214,273.37336231,9.9e-05,2]
[333384650,1722088162332,404.47935249,9.999e-05,2]
[333384651,1722088165652,162.84721699,9.999e-05,2]
[333384652,1722088167262,154.66746495,9.999e-05,2]
[333384653,1722088168002,156.52144763,9.999e-05,2]
[333384654,1722088168619,273.37336231,9.9e-05,2]
[333384655,1722088171836,542.70996312,9.999e-05,2]
[333384656,1722088171979,813.00772694,9.999e-05,2]
[333384657,1722088173124,-1104.42523092,0.00011286,2]
[333384658,1722088173620,186.85776611,0.0001,2]
[333384659,1722088177488,273.37336231,9.9e-05,2]
[333384660,1722088178334,154.68290005,9.999e-05,2]
[333384661,1722088179201,201.33899394,9.999e-05,2]
[333384662,1722088179703,319.5081595,9.999e-05,2]
[333384664,1722088185543,273.37336231,9.9e-05,2]
[333384665,1722088186142,154.68290005,9.999e-05,2]
[333384666,1722088187115,519.24134864,9.999e-05,2]
[333384667,1722088192627,256.98439327,9.999e-05,2]
[333384668,1722088194974,273.37336231,9.9e-05,2]
[333384669,1722088201367,195.85959936,9.999e-05,2]
[333384670,1722088202120,519.24134864,9.999e-05,2]
[333384671,1722088203623,273.37336231,9.9e-05,2]
[333384672,1722088206810,154.68290005,9.999e-05,2]
[333384673,1722088211915,273.37336231,9.9e-05,2]
[333384674,1722088213524,180.35584713,9.999e-05,2]
[333384675,1722088219849,273.37336231,9.9e-05,2]
[333384676,1722088220852,154.68290005,9.999e-05,2]
[333384677,1722088220935,663.78880537,9.999e-05,2]
[333384678,1722088223784,403.4655861,9.999e-05,2]
[333384680,1722088228172,273.37336231,9.9e-05,2]
[333384681,1722088228673,742.36171719,9.999e-05,2]
[333385013,1722088238007,273.37336231,9.9e-05,2]
[333385139,1722088239291,-162.071583,0.00010959,2]
[333385141,1722088239303,-246.178417,0.00010959,2]
[333385143,1722088239313,-315.28455104,0.00011523,2]
[333385266,1722088243720,-2284.4810273,0.00011523,2]
[333385275,1722088244145,-1943.0977592,0.00011523,2]
[333385276,1722088244157,-6807.34927936,0.00011523,2]
[333385280,1722088244665,-5936.42539566,0.00011523,2]
[333385311,1722088246480,-925.12105813,0.00011523,2]
[333385313,1722088246811,-411.11179919,0.00011523,2]
[333385316,1722088248116,273.37336231,9.9e-05,2]
[333385317,1722088251988,533.63252914,9.999e-05,2]
[333385318,1722088254696,319.5081595,9.999e-05,2]
[333385319,1722088256774,273.37336231,9.9e-05,2]
[333385320,1722088264211,201.33899394,9.999e-05,2]
[333385321,1722088264268,154.68290005,9.999e-05,2]
[333385322,1722088265827,273.37336231,9.9e-05,2]
[333385323,1722088272886,200.0,0.0001,2]
[333385326,1722088273642,154.68290005,9.999e-05,2]
[333385329,1722088274412,273.37336231,9.9e-05,2]
[333385331,1722088277343,486.84162415,9.999e-05,2]
[333385332,1722088279843,542.70996312,9.999e-05,2]
[333385333,1722088283275,273.37336231,9.9e-05,2]
[333385334,1722088292578,273.37336231,9.9e-05,2]
[333385335,1722088295337,154.68290005,9.999e-05,2]
[333385336,1722088296057,154.68290005,9.999e-05,2]
[333385337,1722088300759,273.37336231,9.9e-05,2]
[333385338,1722088306955,663.78880537,9.999e-05,2]
[333385339,1722088308692,273.37336231,9.9e-05,2]
[333385340,1722088317617,273.37336231,9.9e-05,2]
[333385341,1722088323130,519.24134864,9.999e-05,2]
[333385342,1722088326390,273.37336231,9.9e-05,2]
[333385343,1722088327447,154.82195475,9.999e-05,2]
[333385344,1722088327781,343.0251587,9.999e-05,2]
[333385345,1722088328185,309.43745822,9.999e-05,2]
[333385346,1722088329034,600.34409866,9.999e-05,2]
[333385347,1722088332483,162.17557523,9.999e-05,2]
[333385348,1722088332688,288.28494131,9.999e-05,2]
[333385349,1722088334287,403.4655861,9.999e-05,2]
[333385350,1722088335227,273.37336231,9.9e-05,2]
[333385351,1722088335416,726.90527473,9.999e-05,2]
[333385352,1722088335856,211.00639127,9.999e-05,2]
[333385353,1722088337008,155.24326506,9.999e-05,2]
[333385354,1722088338631,171.06874628,0.0001,2]
[333385355,1722088339798,158.7501413,9.999e-05,2]
[333385356,1722088339864,154.88371365,9.999e-05,2]
[333385357,1722088340639,519.24134864,9.999e-05,2]
[333385358,1722088342274,154.68290005,9.999e-05,2]
[333385359,1722088342310,157.24600443,9.999e-05,2]
[333385360,1722088343823,273.37336231,9.9e-05,2]
[333385361,1722088345333,344.90731527,9.999e-05,2]
[333385362,1722088346280,240.59744191,9.999e-05,2]
[333385363,1722088347533,200.0,0.0001,2]
[333385364,1722088348772,521.61052637,9.999e-05,2]
[333385365,1722088349302,282.30115475,9.999e-05,2]
[333385366,1722088349876,341.98933379,9.999e-05,2]
[333385367,1722088350206,154.82195475,9.999e-05,2]
[333385368,1722088350384,155.60250398,9.999e-05,2]
[333385369,1722088350730,319.5081595,9.999e-05,2]
[333385370,1722088351196,330.73988639,9.999e-05,2]
[333385371,1722088352369,273.37336231,9.9e-05,2]
[333385372,1722088361306,273.37336231,9.9e-05,2]
[333385373,1722088361664,214.04386472,9.999e-05,2]
[333385375,1722088366219,201.33899394,9.999e-05,2]
[333385376,1722088366930,542.70996312,9.999e-05,2]
[333385378,1722088367002,287.53104938,0.0001,2]
[333385379,1722088367036,154.82195475,9.999e-05,2]
[333385380,1722088370384,273.37336231,9.9e-05,2]
[333385381,1722088378379,273.37336231,9.9e-05,2]
[333385383,1722088382350,306.09368009,9.999e-05,2]
[333385386,1722088387145,273.37336231,9.9e-05,2]
[333385387,1722088391383,312.74657292,9.999e-05,2]
[333385393,1722088395149,273.37336231,9.9e-05,2]
[333385400,1722088404266,273.37336231,9.9e-05,2]
[333385401,1722088411942,287.614435,9.999e-05,2]
[333385402,1722088412244,273.37336231,9.9e-05,2]
[333385403,1722088412413,200.0,0.0001,2]
[333385404,1722088420568,154.66746495,9.999e-05,2]
[333385405,1722088421615,273.37336231,9.9e-05,2]
[333385406,1722088429634,273.37336231,9.9e-05,2]
[333385407,1722088437865,273.37336231,9.9e-05,2]
[333385409,1722088443287,255.31509525,9.999e-05,2]
[333385410,1722088444224,201.33899394,9.999e-05,2]
[333385411,1722088445326,286.37308608,9.999e-05,2]
[333385412,1722088445787,273.37336231,9.9e-05,2]
[333385413,1722088453983,273.37336231,9.9e-05,2]
[333385414,1722088454617,364.21602691,9.999e-05,2]
[333385415,1722088456820,319.0770937,9.999e-05,2]
[333385419,1722088462569,273.37336231,9.9e-05,2]
[333385426,1722088470804,273.37336231,9.9e-05,2]
[333385427,1722088478846,273.37336231,9.9e-05,2]
[333385428,1722088482532,204.42523092,0.0001,2]
[333385429,1722088484349,541.70517926,9.999e-05,2]
[333385430,1722088487034,273.37336231,9.9e-05,2]
[333385431,1722088494994,273.37336231,9.9e-05,2]
[333385433,1722088503456,273.37336231,9.9e-05,2]
[333385434,1722088508621,216.98571975,9.999e-05,2]
[333385436,1722088526254,201.33899394,9.999e-05,2]
[333385437,1722088534577,202.73394169,9.999e-05,2]
[333385438,1722088580897,154.66746495,9.999e-05,2]
[333385439,1722088589542,180.35584713,9.999e-05,2]
[333385440,1722088638632,200.97635902,9.999e-05,2]
[333385441,1722088682854,202.08744432,9.999e-05,2]
[333385442,1722088684538,180.35584713,9.999e-05,2]
[333385445,1722088766812,404.44728125,9.999e-05,2]
[333385446,1722088787551,180.11342705,9.999e-05,2]
[333385447,1722089144172,-250.0,0.00010457,2]
[333385448,1722089144194,-191.47619051,0.00011186,2]
[333385449,1722089144215,-298.30275798,0.0001132,2]
[333385452,1722089226199,-250.0,0.00010801,2]
[333385453,1722089226223,-155.6892572,0.00010831,2]
[333385454,1722089228110,-94.3107428,0.00010831,2]
[333385455,1722089228135,-237.5192572,0.0001086,2]
[333385456,1722089231150,-12.4807428,0.0001086,2]
[333385457,1722089231176,-250.0,0.0001089,2]
[333385458,1722089231200,-250.0,0.0001092,2]
[333385459,1722089231224,-250.0,0.00010949,2]
[333385460,1722089231247,-250.0,0.00010979,2]
[333385461,1722089231273,-250.0,0.00011009,2]
[333385462,1722089231296,-250.0,0.00011038,2]
[333385463,1722089231319,-250.0,0.00011068,2]
[333385464,1722089231342,-250.0,0.00011097,2]
[333385465,1722089231370,-250.0,0.00011127,2]
[333385466,1722089231392,-250.0,0.00011157,2]
[333385467,1722089231415,-250.0,0.00011186,2]
[333385468,1722089231437,-135.11975796,0.00011216,2]
[333385469,1722089248101,-114.88024204,0.00011216,2]
[333385470,1722089248129,-139.99868696,0.00011245,2]
[333385472,1722089284349,273.37336231,9.9e-05,2]
[333385473,1722089372106,-191.47619051,0.00011116,2]
[333385474,1722089372129,-154.66746495,0.00011245,2]
[333385475,1722089372156,-110.00131304,0.00011245,2]
[333385476,1722089372177,-363.36644031,0.00011252,2]
[333385477,1722089372201,-250.0,0.00011275,2]
[333385478,1722089372223,-150.0,0.00011277,2]
[333385479,1722089372246,-250.0,0.00011305,2]
[333385480,1722089372268,-250.0,0.00011334,2]
[333385481,1722089372289,-250.0,0.00011364,2]
[333385482,1722089372312,-300.0,0.00011478,2]
[333385483,1722089372333,-300.0,0.00011478,2]
[333385484,1722089372354,-24900.0,0.00011479,2]
[333385485,1722089372375,-3209.22741112,0.00011855,2]
[333385486,1722089405068,172.232458,9.9e-05,2]
[333385487,1722089405095,101.14090431,9.9e-05,2]
[333385488,1722089413804,273.37336231,9.9e-05,2]
[333385489,1722089422229,273.37336231,9.9e-05,2]
[333385490,1722089422841,200.0,0.0001,2]
[333385554,1722089440799,-363.3664403,0.00012063,2]
[333385555,1722089440808,-1000.0,0.00012082,2]
[333385556,1722089440818,-4866.86491539,0.00012106,2]
[333385557,1722089440827,-2477.87812141,0.0001212,2]
[333385558,1722089440837,-289.18175283,0.00012229,2]
[333385559,1722089440847,-165.536352,0.00013425,2]
[333385560,1722089440856,-2898.61471385,0.00013495,2]
[333385561,1722089440866,-300.0,0.00013545,2]
[333385562,1722089440876,-575.20775726,0.00013546,2]
[333385563,1722089440885,-9663.05035944,0.00013588,2]
[333385564,1722089440895,-9663.05035942,0.00013591,2]
[333385565,1722089440904,-9663.05035942,0.00013593,2]
[333385566,1722089440915,-9663.05035942,0.00013596,2]
[333385567,1722089440924,-9663.05035942,0.00013598,2]
[333385568,1722089440934,-446.9686805,0.000136,2]
[333385569,1722089440943,-2284.5928121,0.00013668,2]
[333385570,1722089440952,-2284.5928121,0.00013676,2]
[333385571,1722089440961,-11422.9640605,0.00013678,2]
[333385572,1722089440971,-3329.65551567,0.00013686,5]
[333385573,1722089440980,-25509.33688282,0.00013686,2]
[333385574,1722089440990,-2284.5928121,0.00013688,2]
[333385575,1722089441002,-11422.9640605,0.00013688,2]
[333385576,1722089441012,-1545.73,0.00013698,2]
[333385577,1722089441021,-1545.73,0.00013698,2]
[333385578,1722089441031,-1545.73,0.00013698,2]
[333385579,1722089441041,-1545.73,0.00013698,2]
[333385580,1722089441052,-1545.73,0.00013698,2]
[333385581,1722089441061,-1545.73,0.00013698,2]
[333385582,1722089441071,-1545.73,0.00013698,2]
[333385583,1722089441081,-1545.73,0.00013698,2]
[333385584,1722089441090,-1545.73,0.00013698,2]
[333385585,1722089441100,-1545.73,0.00013698,2]
[333385586,1722089441110,-1545.73,0.00013698,2]
[333385587,1722089441119,-1545.73,0.00013698,2]
[333385588,1722089441129,-1545.73,0.00013698,2]
[333385589,1722089441139,-1545.73,0.00013698,2]
[333385590,1722089441149,-1545.73,0.00013698,2]
[333385591,1722089441159,-1545.73,0.00013698,2]
[333385592,1722089441169,-1545.73,0.00013698,2]
[333385593,1722089441182,-1545.73,0.00013698,2]
[333385594,1722089441192,-1545.73,0.00013698,2]
[333385595,1722089441201,-1545.73,0.00013698,2]
[333385596,1722089441211,-1545.73,0.00013698,2]
[333385597,1722089441222,-1545.73,0.00013698,2]
[333385598,1722089441231,-1545.73,0.00013698,2]
[333385599,1722089441240,-1545.81233203,0.00013698,2]
[333385600,1722089441254,-500.0,0.00013698,2]
[333385601,1722089441263,-500.0,0.00013698,2]
[333385602,1722089441272,-500.0,0.00013698,2]
[333385603,1722089441281,-500.0,0.00013698,2]
[333385604,1722089441290,-500.0,0.00013698,2]
[333385605,1722089441300,-500.0,0.00013698,2]
[333385606,1722089441309,-500.0,0.00013698,2]
[333385607,1722089441318,-500.0,0.00013698,2]
[333385608,1722089441327,-500.0,0.00013698,2]
[333385609,1722089441337,-528.30243367,0.00013698,2]
[333385610,1722089441347,-500.0,0.00013698,2]
[333385611,1722089441356,-500.0,0.00013698,2]
[333385612,1722089441366,-500.22635326,0.00013698,2]
[333385613,1722089441376,-500.0,0.00013698,2]
[333385614,1722089441386,-500.0,0.00013698,2]
[333385615,1722089441396,-500.0,0.00013698,2]
[333385616,1722089441405,-501.99856816,0.00013698,2]
[333385617,1722089441415,-500.0,0.00013698,2]
[333385618,1722089441424,-501.20994446,0.00013698,2]
[333385619,1722089441433,-500.0,0.00013698,2]
[333385620,1722089441443,-500.0,0.00013698,2]
[333385621,1722089441453,-151.0,0.00013698,2]
[333385622,1722089441462,-171.561649,0.00013698,2]
[333385623,1722089441472,-525.34,0.00013698,2]
[333385624,1722089441481,-500.0,0.00013698,2]
[333385625,1722089441491,-500.0,0.00013698,2]
[333385626,1722089441503,-151.0,0.00013698,2]
[333385627,1722089441515,-151.0,0.00013698,2]
[333385628,1722089441528,-618.58324947,0.00013698,2]
[333385629,1722089441538,-500.0,0.00013698,2]
[333385630,1722089441548,-759.72,0.00013698,2]
[333385631,1722089441558,-500.0,0.00013698,2]
[333385632,1722089441567,-151.0,0.00013698,2]
[333385633,1722089441577,-500.0,0.00013698,2]
[333385634,1722089441587,-500.0,0.00013698,2]
[333385635,1722089441597,-500.0,0.00013698,2]
[333385636,1722089441607,-883.29,0.00013698,2]
[333385637,1722089441616,-500.0,0.00013698,2]
[333385638,1722089441626,-500.0,0.00013698,2]
[333385639,1722089441636,-500.0,0.00013698,2]
[333385640,1722089441646,-151.0,0.00013698,2]
[333385641,1722089441656,-151.0,0.00013698,2]
[333385642,1722089441667,-500.0,0.00013698,2]
[333385643,1722089441678,-500.0,0.00013698,2]
[333385644,1722089441688,-500.0,0.00013698,2]
[333385645,1722089441698,-500.0,0.00013698,2]
[333385646,1722089441709,-500.0,0.00013698,2]
[333385647,1722089441719,-500.0,0.00013698,2]
[333385648,1722089441730,-500.0,0.00013698,2]
[333385649,1722089441740,-500.0,0.00013698,2]
[333385650,1722089441751,-500.0,0.00013698,2]
[333385651,1722089441765,-500.0,0.00013698,2]
[333385652,1722089441775,-500.0,0.00013698,2]
[333385653,1722089441786,-500.0,0.00013698,2]
[333385654,1722089441796,-500.0,0.00013698,2]
[333385655,1722089441806,-500.0,0.00013698,2]
[333385656,1722089441816,-500.0,0.00013698,2]
[333385657,1722089441825,-500.0,0.00013698,2]
[333385658,1722089441835,-500.0,0.00013698,2]
[333385659,1722089441845,-151.0,0.00013698,2]
[333385660,1722089441854,-500.0,0.00013698,2]
[333385661,1722089441864,-151.0,0.00013698,2]
[333385662,1722089441873,-500.0,0.00013698,2]
[333385663,1722089441883,-151.0,0.00013698,2]
[333385664,1722089441892,-151.0,0.00013698,2]
[333385665,1722089441902,-500.0,0.00013698,2]
[333385666,1722089441911,-500.0,0.00013698,2]
[333385667,1722089441921,-500.0,0.00013698,2]
[333385668,1722089441932,-500.90753046,0.00013698,2]
[333385669,1722089441942,-500.0,0.00013698,2]
[333385670,1722089441952,-440.54186579,0.00013698,2]
[333385671,1722089441962,-500.0,0.00013698,2]
[333385672,1722089441971,-500.0,0.00013698,2]
[333385673,1722089441980,-503.79320357,0.00013698,2]
[333385674,1722089441991,-151.0,0.00013698,2]
[333385675,1722089442003,-151.0,0.00013698,2]
[333385676,1722089442012,-500.0,0.00013698,2]
[333385677,1722089442022,-151.0,0.00013698,2]
[333385678,1722089442031,-516.06,0.00013698,2]
[333385679,1722089442040,-151.0,0.00013698,2]
[333385680,1722089442051,-151.0,0.00013698,2]
[333385681,1722089442063,-151.0,0.00013698,2]
[333385682,1722089442072,-500.0,0.00013698,2]
[333385683,1722089442081,-500.0,0.00013698,2]
[333385684,1722089442091,-500.0,0.00013698,2]
[333385685,1722089442101,-574.78,0.00013698,2]
[333385686,1722089442110,-150.0,0.00013698,2]
[333385687,1722089442120,-151.0,0.00013698,2]
[333385688,1722089442129,-151.0,0.00013698,2]
[333385689,1722089442138,-500.0,0.00013698,2]
[333385690,1722089442147,-500.0,0.00013698,2]
[333385691,1722089442157,-388.751951,0.00013698,2]
[333385692,1722089442167,-388.751951,0.00013698,2]
[333385693,1722089442179,-388.751951,0.00013698,2]
[333385694,1722089442189,-388.751951,0.00013698,2]
[333385695,1722089442200,-419.96502977,0.00013698,2]
[333385696,1722089442209,-500.0,0.00013698,2]
[333385697,1722089442218,-151.0,0.00013698,2]
[333385698,1722089442228,-151.0,0.00013698,2]
[333385699,1722089442238,-522.198983,0.00013698,2]
[333385700,1722089442247,-522.198983,0.00013698,2]
[333385701,1722089442261,-522.198983,0.00013698,2]
[333385702,1722089442271,-522.198983,0.00013698,2]
[333385703,1722089442280,-500.0,0.00013698,2]
[333385704,1722089442289,-500.0,0.00013698,2]
[333385705,1722089442298,-500.0,0.00013698,2]
[333385706,1722089442308,-500.0,0.00013698,2]
[333385707,1722089442318,-151.0,0.00013698,2]
[333385708,1722089442328,-500.0,0.00013698,2]
[333385709,1722089442338,-677.47,0.00013698,2]
[333385710,1722089442348,-541.91,0.00013698,2]
[333385711,1722089442358,-153.825328,0.00013698,2]
[333385712,1722089442367,-153.825328,0.00013698,2]
[333385713,1722089442377,-153.825328,0.00013698,2]
[333385714,1722089442387,-153.825328,0.00013698,2]
[333385715,1722089442396,-151.0,0.00013698,2]
[333385716,1722089442405,-151.0,0.00013698,2]
[333385717,1722089442415,-500.0,0.00013698,2]
[333385718,1722089442424,-500.0,0.00013698,2]
[333385719,1722089442434,-690.45,0.00013698,2]
[333385720,1722089442443,-827.66,0.00013698,2]
[333385721,1722089442452,-151.0,0.00013698,2]
[333385722,1722089442462,-151.0,0.00013698,2]
[333385723,1722089442471,-151.0,0.00013698,2]
[333385724,1722089442481,-500.0,0.00013698,2]
[333385725,1722089442490,-151.0,0.00013698,2]
[333385726,1722089442499,-500.0,0.00013698,2]
[333385727,1722089442510,-500.0,0.00013698,2]
[333385728,1722089442520,-151.0,0.00013698,2]
[333385729,1722089442530,-500.73041792,0.00013698,2]
[333385730,1722089442539,-500.0,0.00013698,2]
[333385731,1722089442548,-500.0,0.00013698,2]
[333385732,1722089442557,-500.0,0.00013698,2]
[333385733,1722089442566,-500.0,0.00013698,2]
[333385734,1722089442576,-500.0,0.00013698,2]
[333385735,1722089442585,-500.0,0.00013698,2]
[333385736,1722089442595,-500.0,0.00013698,2]
[333385737,1722089442604,-151.0,0.00013698,2]
[333385738,1722089442613,-151.0,0.00013698,2]
[333385739,1722089442623,-151.0,0.00013698,2]
[333385740,1722089442632,-500.0,0.00013698,2]
[333385741,1722089442641,-500.0,0.00013698,2]
[333385742,1722089442650,-151.0,0.00013698,2]
[333385743,1722089442659,-151.0,0.00013698,2]
[333385744,1722089442669,-500.0,0.00013698,2]
[333385745,1722089442678,-501.59095229,0.00013698,2]
[333385746,1722089442687,-151.0,0.00013698,2]
[333385747,1722089442697,-151.0,0.00013698,2]
[333385748,1722089442706,-500.0,0.00013698,2]
[333385749,1722089442716,-500.0,0.00013698,2]
[333385750,1722089442725,-151.0,0.00013698,2]
[333385751,1722089442734,-189.603126,0.00013698,2]
[333385752,1722089442743,-500.0,0.00013698,2]
[333385753,1722089442755,-500.0,0.00013698,2]
[333385754,1722089442766,-500.0,0.00013698,2]
[333385755,1722089442775,-501.469138,0.00013698,2]
[333385756,1722089442785,-500.0,0.00013698,2]
[333385757,1722089442794,-500.0,0.00013698,2]
[333385758,1722089442804,-754.63,0.00013698,2]
[333385759,1722089442814,-500.0,0.00013698,2]
[333385760,1722089442823,-500.0,0.00013698,2]
[333385761,1722089442832,-500.0,0.00013698,2]
[333385762,1722089442842,-151.0,0.00013698,2]
[333385763,1722089442852,-151.0,0.00013698,2]
[333385764,1722089442861,-500.0,0.00013698,2]
[333385765,1722089442870,-151.0,0.00013698,2]
[333385766,1722089442879,-500.0,0.00013698,2]
[333385767,1722089442890,-593.31725,0.00013698,2]
[333385768,1722089442899,-593.31725,0.00013698,2]
[333385769,1722089442908,-593.31725,0.00013698,2]
[333385770,1722089442918,-500.0,0.00013698,2]
[333385771,1722089442927,-151.0,0.00013698,2]
[333385772,1722089442936,-151.0,0.00013698,2]
[333385773,1722089442948,-151.0,0.00013698,2]
[333385774,1722089442958,-593.31725,0.00013698,2]
[333385775,1722089442968,-500.0,0.00013698,2]
[333385776,1722089442977,-593.31725,0.00013698,2]
[333385777,1722089442987,-593.31725,0.00013698,2]
[333385778,1722089442997,-500.0,0.00013698,2]
[333385779,1722089443009,-500.0,0.00013698,2]
[333385780,1722089443018,-500.0,0.00013698,2]
[333385781,1722089443027,-502.02012757,0.00013698,2]
[333385783,1722089443038,-151.0,0.00013698,2]
[333385784,1722089443047,-241.786727,0.00013698,2]
[333385785,1722089443057,-500.0,0.00013698,2]
[333385786,1722089443068,-500.0,0.00013698,2]
[333385788,1722089443077,-151.0,0.00013698,2]
[333385789,1722089443086,-151.0,0.00013698,2]
[333385790,1722089443095,-151.0,0.00013698,2]
[333385791,1722089443105,-500.0,0.00013698,2]